bitfinex/quotes_ETHUSD_20250604
["timestamp","ask_amount","ask_price","bid_price","bid_amount"]
[1749028936269,0.55,2631.8,2630.9,0.1596]
[1749028936270,2.77880892,2631.5,2630.9,0.1596]
[1749028936476,2.77880892,2631.5,2630.7,0.1596]
[1749028936650,1.1389,2631.4,2630.7,0.1596]
[1749028938635,1.1389,2631.4,2630.8,10.0]
[1749028939233,1.1389,2631.4,2630.8,5.955335]
[1749028940165,1.1389,2631.4,2630.8,5.193462]
[1749028940348,1.1389,2631.4,2630.8,2.932295]
[1749028941274,1.1389,2631.4,2630.9,8.0]
[1749028941482,1.1389,2631.4,2630.7,0.1596]
[1749028942378,1.1389,2631.4,2630.9,8.0]
[1749028942677,1.1389,2631.4,2630.7,0.1596]
[1749028942876,1.6971,2631.6,2630.7,0.1596]
[1749028943078,1.1471,2631.6,2630.9,8.0]
[1749028943375,1.1471,2631.6,2630.7,0.1596]
[1749028943584,1.1471,2631.6,2630.9,8.0]
[1749028944447,1.1471,2631.6,2630.7,0.1596]
[1749028944778,1.1471,2631.6,2630.9,8.0]
[1749028944977,1.1471,2631.6,2630.7,1.3695846]
[1749028945364,1.1471,2631.6,2630.9,8.0]
[1749028945969,1.1471,2631.6,2630.7,1.3695846]
[1749028946356,1.1471,2631.6,2630.9,8.0]
[1749028946787,1.1471,2631.6,2630.8,8.0]
[1749028947796,1.1471,2631.6,2630.9,0.1596]
[1749028948490,1.1471,2631.6,2630.8,8.0]
[1749028948491,1.1471,2631.6,2630.8,18.339574]
[1749028948689,1.1471,2631.6,2630.8,8.339574]
[1749028951013,1.1471,2631.6,2630.7,1.3695846]
[1749028951191,1.1471,2631.6,2630.7,0.1596]
[1749028951496,1.1587,2631.5,2630.7,0.1596]
[1749028951700,1.1587,2631.5,2630.7,1.3695846]
[1749028951919,1.1587,2631.5,2630.9,8.0]
[1749028952261,1.1587,2631.5,2630.8,19.694715]
[1749028952497,1.1587,2631.5,2630.7,1.3695846]
[1749028952908,1.1587,2631.5,2630.9,8.0]
[1749028953257,1.1587,2631.5,2630.8,10.0]
[1749028953460,1.1587,2631.5,2630.7,1.2099846]
[1749028953659,1.1587,2631.5,2630.7,10.0]
[1749028954279,1.1587,2631.5,2630.8,8.0]
[1749028954582,1.1419,2631.3,2630.8,8.0]
[1749028954786,1.1419,2631.3,2630.6,1.2099846]
[1749028954993,1.1419,2631.3,2630.8,8.0]
[1749028955197,1.1419,2631.3,2630.6,1.2099846]
[1749028955406,1.1419,2631.3,2630.8,8.0]
[1749028955622,1.1419,2631.3,2630.7,8.0]
[1749028956264,1.1419,2631.3,2630.5,9.8795846]
[1749028956607,1.1419,2631.3,2630.7,8.0]
[1749028956805,1.1419,2631.3,2630.5,9.8795846]
[1749028957003,1.1419,2631.3,2630.5,1.8795846]
[1749028957169,1.1419,2631.3,2630.5,9.8795846]
[1749028957372,1.1419,2631.3,2630.7,8.0]
[1749028957594,1.1167,2631.2,2630.5,9.7199846]
[1749028957813,3.32880892,2630.6,2630.5,0.51]
[1749028958107,1.1167,2630.5,2630.1,0.02]
[1749028958467,0.55,2630.9,2630.1,0.02]
[1749028958864,1.1167,2631.0,2630.3,8.0]
[1749028960199,1.1167,2631.0,2630.1,8.02]
[1749028962382,1.025,2631.3,2630.5,10.0]
[1749028962701,1.025,2631.3,2630.4,8.523942]
[1749028963218,1.025,2631.3,2630.5,3.272938]
[1749028963367,1.025,2631.3,2630.4,10.0]
[1749028963568,1.115,2631.1,2630.4,10.0]
[1749028963872,1.115,2631.0,2630.2,0.51]
[1749028964419,1.115,2630.9,2630.2,0.51]
[1749028965571,1.115,2630.9,2630.4,8.0]
[1749028965778,1.115,2630.9,2630.2,0.51]
[1749028966163,0.55,2630.7,2630.3,10.0]
[1749028966407,1.1316,2630.5,2630.2,0.51]
[1749028966585,1.1316,2630.5,2630.1,0.02]
[1749028967411,1.0789,2630.3,2630.1,0.02]
[1749028971098,1.098,2630.6,2630.1,0.02]
[1749028977587,0.55,2631.0,2630.1,0.02]
[1749028977588,0.55,2630.3,2630.1,0.02]
[1749028977789,2.77880892,2631.2,2630.1,0.02]
[1749028977790,4.43330892,2630.2,2630.1,0.02]
[1749028978995,1.6545,2630.2,2630.1,0.02]
[1749028981037,1.6545,2630.2,2629.1,12.3912676]
[1749028981234,1.6545,2630.2,2629.2,10.0]
[1749028981550,1.1313,2630.6,2629.7,2.77880892]
[1749028981751,1.1313,2630.6,2629.9,10.0]
[1749028982049,1.1213,2631.6,2630.0,10.0]
[1749028982257,1.1213,2631.1,2630.0,9.57436]
[1749028983002,1.1213,2631.1,2630.1,0.21354642]
[1749028983198,1.51131089,2631.1,2630.0,20.0]
[1749028983454,1.51131089,2631.1,2630.0,10.0]
[1749028983624,0.55,2631.0,2630.2,10.0]
[1749028983799,0.55,2631.0,2629.9,2.77880892]
[1749028983800,0.55,2631.0,2630.1,10.0]
[1749028984000,3.32880892,2631.0,2630.2,10.0]
[1749028984201,3.8128209,2631.0,2630.0,8.87036]
[1749028984399,3.8128209,2631.0,2630.2,10.0]
[1749028984601,3.8128209,2631.0,2630.3,10.0]
[1749028984844,3.8128209,2631.0,2630.0,9.665531]
[1749028985343,1.0866,2630.9,2630.1,0.21354771]
[1749028985550,2.77880892,2630.8,2630.0,3.763211]
[1749028985704,2.77880892,2630.8,2629.7,1.2099846]
[1749028985903,2.77880892,2630.8,2629.8,4.092255]
[1749028986808,2.77880892,2630.8,2629.9,10.0]
[1749028987008,2.77880892,2630.8,2629.9,4.092255]
[1749028987906,2.77880892,2630.8,2629.8,14.092255]
[1749028988106,2.77880892,2630.8,2629.9,10.0]
[1749028988406,2.77880892,2630.8,2629.9,4.092255]
[1749028989115,2.77880892,2630.8,2630.0,8.0]
[1749028989320,1.57654209,2630.9,2630.0,8.0]
[1749028989542,1.57654209,2630.9,2630.1,4.092255]
[1749028989756,1.57654209,2630.9,2630.1,10.0]
[1749028989941,1.57654209,2630.9,2630.2,2.406396]
[1749028990269,1.57654209,2630.9,2630.2,10.0]
[1749028990430,1.57654209,2630.9,2630.2,4.092255]
[1749028990634,1.6067351,2630.8,2630.0,8.0]
[1749028990853,1.1162,2630.8,2630.2,10.0]
[1749028991031,1.1162,2630.8,2630.2,4.092255]
[1749028991240,1.1162,2630.8,2630.2,3.361599]
[1749028993460,1.1162,2630.8,2630.1,10.0]
[1749028993716,1.1162,2630.8,2630.2,10.0]
[1749028993937,1.1162,2630.8,2630.2,3.163955]
[1749028996059,1.1162,2630.8,2630.3,10.77880892]
[1749028996260,1.1346,2631.8,2630.8,8.0]
[1749028996420,0.55,2631.7,2630.8,8.0]
[1749028996758,0.55,2631.5,2630.8,8.0]
[1749028996964,1.1346,2631.6,2630.8,8.0]
[1749028997257,0.55,2631.5,2630.8,8.0]
[1749028997458,1.1346,2631.6,2630.8,8.0]
[1749028997649,0.55,2631.5,2630.8,8.0]
[1749028997850,1.1346,2631.6,2630.8,8.0]
[1749029005981,1.1346,2631.6,2631.2,8.0]
[1749029006296,1.1346,2631.6,2631.2,2.77880892]
[1749029006594,0.02,2631.9,2631.4,2.77880892]
[1749029006595,1.0683,2631.8,2631.4,2.77880892]
[1749029006796,1.0683,2631.8,2631.2,2.77880892]
[1749029006999,1.0683,2631.8,2631.3,2.331998]
[1749029007353,1.0683,2631.8,2631.4,2.77880892]
[1749029007567,0.02,2631.9,2631.7,10.0]
[1749029007781,0.02,2631.9,2631.6,2.77880892]
[1749029009655,0.02,2631.9,2631.5,4.092255]
[1749029009854,0.02,2631.9,2631.6,10.0]
[1749029010190,0.02,2631.9,2631.6,4.092255]
[1749029011693,0.02,2631.9,2631.6,3.192472]
[1749029011992,1.0444,2631.8,2631.1,10.51]
[1749029012197,0.55,2631.7,2631.1,0.51]
[1749029012411,1.1092,2631.6,2631.1,0.51]
[1749029013072,1.1092,2631.6,2630.8,4.092255]
[1749029013407,1.0896,2631.4,2630.9,4.092255]
[1749029019490,0.5896,2631.4,2630.9,4.092255]
[1749029022516,0.55,2631.7,2631.2,10.0]
[1749029022517,1.1409,2631.7,2631.2,10.0]
[1749029022673,1.1409,2631.7,2631.2,4.092255]
[1749029023982,1.1409,2631.7,2631.2,6.87106392]
[1749029024176,1.1409,2631.7,2631.2,2.77880892]
[1749029025284,1.1409,2631.7,2631.2,3.05668981]
[1749029028092,4.67,2631.8,2631.4,2.77880892]
[1749029028294,1.1728,2631.9,2631.4,2.77880892]
[1749029029522,1.1728,2631.9,2631.6,10.0]
[1749029029715,1.1728,2631.9,2631.5,4.092255]
[1749029029716,1.1728,2631.9,2631.5,10.0]
[1749029029924,1.1728,2631.9,2631.5,3.106286]
[1749029032727,0.02,2631.9,2631.5,3.106286]
[1749029032928,0.02,2631.9,2631.6,14.092255]
[1749029033129,0.02,2631.9,2631.6,4.092255]
[1749029037918,0.02,2631.9,2631.6,6.87106392]
[1749029038121,0.02,2631.9,2631.7,4.092255]
[1749029038310,0.02,2631.9,2631.8,10.0]
[1749029038705,0.02,2631.9,2631.8,10.40366956]
[1749029038909,0.02,2631.9,2631.8,3.18247848]
[1749029040427,0.02,2631.9,2631.8,0.40366956]
[1749029040745,0.02,2631.9,2631.8,10.0]
[1749029040910,0.02,2631.9,2631.7,2.77880892]
[1749029042858,0.02,2631.9,2631.8,8.0]
[1749029043064,1.0712,2632.3,2631.8,8.0]
[1749029044168,1.0712,2632.3,2631.9,2.77880892]
[1749029044367,1.0712,2632.3,2631.9,3.05668981]
[1749029045272,1.0623,2632.8,2632.1,2.77880892]
[1749029045671,1.0623,2632.8,2631.9,0.77048089]
[1749029045672,1.0623,2632.8,2632.3,2.77880892]
[1749029045967,1.0623,2632.8,2632.1,2.77880892]
[1749029046130,1.0623,2632.8,2632.2,4.092255]
[1749029046325,1.0623,2632.8,2632.3,10.68710639]
[1749029046526,1.0623,2632.8,2632.3,0.68710639]
[1749029046734,1.0623,2632.8,2632.2,4.092255]
[1749029049571,1.0623,2632.8,2632.3,0.4926]
[1749029049867,1.0623,2632.8,2632.3,11.27140892]
[1749029051874,1.0775,2633.0,2632.5,10.0]
[1749029052448,1.0775,2633.0,2632.4,4.092255]
[1749029052644,1.0775,2633.0,2632.5,10.0]
[1749029052845,1.0775,2633.0,2632.4,4.092255]
[1749029053049,1.0775,2633.0,2632.5,10.0]
[1749029053249,1.0775,2633.0,2632.4,4.092255]
[1749029053585,1.0775,2633.0,2632.5,10.0]
[1749029054770,1.0775,2633.0,2632.4,4.092255]
[1749029054985,1.0775,2633.0,2632.5,10.0]
[1749029055136,1.0775,2633.0,2632.4,4.092255]
[1749029055337,1.0775,2633.0,2632.5,10.0]
[1749029055594,1.0775,2633.0,2632.4,4.092255]
[1749029056053,1.0775,2633.0,2632.5,10.0]
[1749029056256,1.0775,2633.0,2632.4,4.092255]
[1749029056580,1.0775,2633.0,2632.5,10.0]
[1749029057061,1.0775,2633.0,2632.5,4.092255]
[1749029057391,1.0775,2633.0,2632.3,11.27140892]
[1749029058313,1.0775,2633.0,2632.5,2.77880892]
[1749029058454,0.55,2633.5,2632.7,2.77880892]
[1749029058807,1.1166,2633.2,2632.7,2.77880892]
[1749029060299,1.1166,2633.2,2632.8,8.0]
[1749029060654,0.00017857,2632.9,2632.8,14.074555]
[1749029061298,0.00017857,2632.9,2632.8,4.65094176]
[1749029061599,0.00017857,2632.9,2632.8,4.19962207]
[1749029062094,0.00017857,2632.9,2632.8,4.68032107]
[1749029062269,0.00017857,2632.9,2632.8,4.60116507]
[1749029064904,0.00017857,2632.9,2632.8,8.79223507]
[1749029065221,0.00017857,2632.9,2632.8,10.021549]
[1749029065384,0.00017857,2632.9,2632.8,8.0]
[1749029070323,0.00017857,2632.9,2632.8,13.291012]
[1749029070787,0.00017857,2632.9,2632.8,13.783612]
[1749029070994,1.1486,2633.7,2633.1,8.0]
[1749029071219,1.1486,2633.7,2633.4,2.77880892]
[1749029071522,1.1398,2633.9,2633.4,2.77880892]
[1749029071988,0.02,2633.9,2633.8,2.77880892]
[1749029072323,0.02,2633.9,2633.8,13.06126892]
[1749029072923,0.02,2633.9,2633.8,8.0]
[1749029073223,0.02,2633.9,2633.8,10.77880892]
[1749029073429,0.02,2633.9,2633.8,21.27140892]
[1749029075027,0.02,2634.9,2634.5,2.77880892]
[1749029075322,0.02,2634.9,2634.6,8.0]
[1749029076523,0.02,2634.9,2634.8,8.0]
[1749029077794,0.02,2634.9,2634.8,8.462]
[1749029079599,0.02,2634.9,2634.6,0.51]
[1749029082297,0.02,2634.9,2634.7,8.0]
[1749029082501,0.02,2634.9,2634.5,2.15525213]
[1749029082942,0.02,2634.9,2634.6,10.0]
[1749029083234,0.02,2634.9,2634.6,8.609886]
[1749029083413,0.02,2634.9,2634.7,10.0]
[1749029083642,0.02,2634.9,2634.6,8.082731]
[1749029083815,0.02,2634.9,2634.7,10.0]
[1749029084033,0.02,2634.9,2634.7,2.77880892]
[1749029085241,0.02,2634.9,2634.8,8.0]
[1749029087399,0.02,2634.9,2634.7,0.51]
[1749029096529,2.131,2634.8,2634.7,0.51]
[1749029096724,6.497,2634.8,2634.7,0.51]
[1749029099950,7.323,2634.8,2634.7,0.51]
[1749029100754,7.323,2634.8,2634.5,8.233095]
[1749029100967,7.323,2634.8,2634.6,2.141]
[1749029101170,7.323,2634.8,2634.4,2.77880892]
[1749029101378,7.323,2634.8,2634.5,3.376599]
[1749029102661,7.323,2634.8,2634.6,8.0]
[1749029104138,4.639,2634.8,2634.6,8.0]
[1749029104336,1.879,2634.7,2634.6,7.58898992]
[1749029104554,1.879,2634.7,2634.6,4.95323592]
[1749029104752,1.879,2634.7,2634.5,2.77880892]
[1749029104964,1.879,2634.7,2634.1,1.705]
[1749029105129,2.5328,2634.7,2633.9,3.5670986]
[1749029105329,2.5328,2634.7,2633.9,2.05461784]
[1749029105564,2.5328,2634.7,2634.0,8.145465]
[1749029105765,2.5328,2634.7,2634.1,10.0]
[1749029106066,2.5328,2634.7,2634.0,10.0]
[1749029106283,2.5328,2634.7,2634.1,10.0]
[1749029106485,2.5328,2634.7,2634.0,7.631231]
[1749029106658,2.5328,2634.7,2634.2,8.0]
[1749029108588,1.0801,2634.5,2634.0,8.0]
[1749029108881,1.548,2634.4,2634.0,8.0]
[1749029109458,1.548,2634.4,2633.9,2.77880892]
[1749029109652,1.548,2634.4,2633.7,10.77880892]
[1749029109960,1.548,2634.4,2633.9,10.0]
[1749029110137,1.548,2634.4,2633.8,5.343649]
[1749029110343,1.548,2634.4,2633.9,10.0]
[1749029110561,1.548,2634.4,2633.8,5.343649]
[1749029110763,1.548,2634.4,2633.9,10.0]
[1749029111075,1.81081,2634.4,2633.9,10.0]
[1749029111373,1.81081,2634.4,2633.7,2.77880892]
[1749029111573,1.1222,2634.3,2633.7,8.0]
[1749029112582,1.1222,2634.3,2633.8,2.77880892]
[1749029112782,1.1222,2634.3,2633.6,3.98960357]
[1749029112982,1.38922,2634.3,2633.6,2.77880892]
[1749029113191,1.1222,2634.3,2633.6,12.77880892]
[1749029115065,1.1222,2634.3,2633.9,8.0]
[1749029115765,1.965,2634.2,2633.9,8.0]
[1749029115969,1.548,2634.1,2633.9,8.0]
[1749029120656,0.333,2634.0,2633.9,8.0]
[1749029126680,1.878,2634.0,2633.9,8.0]
[1749029126868,1.56103851,2634.0,2633.9,8.0]
[1749029128213,0.01603851,2634.0,2633.9,8.0]
[1749029128429,1.56103851,2634.0,2633.9,19.21079465]
[1749029128574,0.01603851,2634.0,2633.9,18.0]
[1749029128778,1.56103851,2634.0,2633.9,18.0]
[1749029128993,1.53870724,2634.0,2633.9,18.0]
[1749029129395,0.333,2634.0,2633.9,18.0]
[1749029129595,1.878,2634.0,2633.9,18.0]
[1749029130532,0.333,2634.0,2633.9,18.0]
[1749029130686,1.878,2634.0,2633.9,18.40462941]
[1749029131320,0.333,2634.0,2633.9,18.40462941]
[1749029131538,1.878,2634.0,2633.9,18.40462941]
[1749029134392,1.878,2634.0,2633.9,18.71352941]
[1749029137620,1.878,2634.0,2633.9,8.0]
[1749029137924,1.878,2634.0,2633.9,14.62776615]
[1749029138147,1.878,2634.0,2633.9,13.41847792]
[1749029142211,0.333,2634.0,2633.9,13.41847792]
[1749029142414,1.877,2634.0,2633.9,13.41847792]
[1749029144831,1.877,2634.0,2633.9,14.62776615]
[1749029146006,0.333,2634.0,2633.9,14.62776615]
[1749029146207,1.877,2634.0,2633.9,14.62776615]
[1749029146409,1.965,2634.2,2633.9,14.62776615]
[1749029146605,0.331,2634.0,2633.9,11.84895723]
[1749029147712,0.331,2634.0,2633.9,14.62776615]
[1749029149710,0.331,2634.0,2633.9,4.97139335]
[1749029149930,0.331,2634.0,2633.9,3.98809715]
[1749029150234,0.331,2634.0,2633.9,10.56881915]
[1749029150431,0.331,2634.0,2633.9,9.42403315]
[1749029150630,0.331,2634.0,2633.9,7.41743615]
[1749029151137,2.296,2634.0,2633.9,7.41743615]
[1749029151301,3.84,2634.0,2633.9,7.41743615]
[1749029151703,3.84,2634.0,2633.9,15.41743615]
[1749029152203,1.965,2634.0,2633.9,14.20814792]
[1749029152456,3.84,2634.0,2633.9,14.20814792]
[1749029155136,2.296,2634.0,2633.9,14.20814792]
[1749029155343,3.84,2634.0,2633.9,14.20814792]
[1749029157641,1.965,2634.4,2634.1,10.0]
[1749029157837,1.875,2634.3,2634.1,10.40462941]
[1749029158038,1.875,2634.3,2634.2,10.0]
[1749029158239,1.875,2634.3,2634.2,13.03160092]
[1749029163450,1.875,2634.3,2634.2,14.24277371]
[1749029167561,1.875,2634.3,2634.2,16.04230984]
[1749029167562,0.331,2634.3,2634.2,16.04230984]
[1749029167756,1.965,2634.4,2634.3,18.0]
[1749029168048,3.839,2634.4,2634.3,18.0]
[1749029169621,2.295,2634.4,2634.3,18.0]
[1749029169851,3.839,2634.4,2634.3,20.77880892]
[1749029170152,3.839,2634.4,2634.3,18.0]
[1749029172036,2.295,2634.4,2634.3,18.0]
[1749029172243,3.839,2634.4,2634.3,18.0]
[1749029176473,3.839,2634.4,2634.3,20.77880892]
[1749029176474,2.295,2634.4,2634.3,20.77880892]
[1749029176666,3.839,2634.4,2634.3,21.18343833]
[1749029177591,3.839,2634.4,2634.3,18.40462941]
[1749029177894,2.295,2634.4,2634.3,18.40462941]
[1749029178096,3.48373648,2634.4,2634.3,21.18343833]
[1749029180177,3.48373648,2634.4,2634.3,7.36190233]
[1749029180473,3.48373648,2634.4,2634.3,11.18343833]
[1749029180675,3.48373648,2634.4,2634.3,14.96461492]
[1749029183464,3.48373648,2634.4,2634.3,12.83417392]
[1749029185371,3.48373648,2634.4,2634.3,6.12390892]
[1749029185553,3.48373648,2634.4,2634.3,2.77880892]
[1749029185757,3.48373648,2634.4,2634.3,10.77880892]
[1749029187858,5.13872013,2634.4,2634.3,8.0]
[1749029191886,5.13872013,2634.4,2634.3,8.51]
[1749029194065,5.13872013,2634.4,2634.3,0.51]
[1749029194368,5.13872013,2634.4,2633.8,8.0]
[1749029194369,1.1962,2634.3,2633.8,8.0]
[1749029194577,1.227,2634.1,2633.8,8.0]
[1749029194772,1.227,2633.9,2633.8,8.0]
[1749029196267,1.227,2633.9,2633.7,1.54299402]
[1749029196481,1.544,2633.8,2633.7,1.54299402]
[1749029200926,1.874,2633.8,2633.7,1.54299402]
[1749029203542,0.33,2633.8,2633.7,1.54299402]
[1749029203687,1.874,2633.8,2633.7,1.54299402]
[1749029205624,3.839,2633.8,2633.7,1.54299402]
[1749029209523,3.839,2633.8,2633.7,2.77880892]
[1749029210303,1.1679,2633.7,2633.4,1.61431789]
[1749029210508,1.1679,2633.7,2633.3,2.77880892]
[1749029210509,1.544,2633.6,2633.3,2.77880892]
[1749029210705,1.544,2633.6,2633.5,2.77880892]
[1749029214444,1.1679,2633.7,2633.5,2.77880892]
[1749029214596,2.295,2633.8,2633.6,0.27788089]
[1749029214931,2.295,2633.8,2633.7,2.77880892]
[1749029215695,3.839,2633.8,2633.7,10.77880892]
[1749029221121,2.295,2633.8,2633.7,10.77880892]
[1749029221321,3.839,2633.8,2633.7,10.77880892]
[1749029224527,2.295,2633.8,2633.7,10.77880892]
[1749029224707,3.839,2633.8,2633.7,10.77880892]
[1749029232853,3.839,2633.8,2633.7,2.77880892]
[1749029240472,1.1716,2633.7,2633.1,1.51529436]
[1749029240628,1.1716,2633.7,2633.2,2.77880892]
[1749029240828,0.965,2633.3,2633.2,2.77880892]
[1749029241764,0.965,2633.3,2633.2,3.28880892]
[1749029242762,0.965,2633.3,2633.2,11.28880892]
[1749029248126,1.196,2633.2,2632.6,1.51529436]
[1749029248436,1.196,2633.2,2632.1,0.02]
[1749029248437,1.196,2632.6,2632.1,0.02]
[1749029248765,1.196,2632.6,2632.4,2.77880892]
[1749029248966,1.196,2633.0,2632.6,8.0]
[1749029249122,0.971,2632.7,2632.6,11.24939504]
[1749029249326,0.971,2632.7,2632.6,10.80382237]
[1749029249669,0.971,2632.7,2632.6,8.52136237]
[1749029250350,0.971,2632.7,2632.6,11.30017129]
[1749029253677,0.206,2632.9,2632.6,11.30017129]
[1749029253828,0.44863763,2632.7,2632.6,10.77880892]
[1749029254769,0.43973371,2632.7,2632.6,10.77880892]
[1749029254931,1.1173,2633.7,2632.8,10.0]
[1749029255131,0.206,2633.6,2633.0,2.77880892]
[1749029255327,1.1173,2633.7,2633.0,10.77880892]
[1749029255559,1.1173,2633.7,2633.3,8.0]
[1749029255759,0.97,2633.4,2633.3,8.0]
[1749029260154,0.55,2633.3,2631.1,0.02]
[1749029260376,0.55,2633.3,2630.1,0.02]
[1749029260377,0.55,2631.1,2630.1,0.02]
[1749029260572,0.55,2631.1,2630.6,2.77880892]
[1749029260573,1.1903,2631.1,2630.6,2.77880892]
[1749029261002,1.1903,2631.1,2630.9,10.0]
[1749029261172,5.27595806,2633.0,2631.4,1.1903]
[1749029261499,0.2,2633.8,2631.5,1.80355437]
[1749029261699,5.27595806,2633.1,2631.5,1.80355437]
[1749029261859,5.27595806,2633.1,2631.3,10.0]
[1749029261860,5.27595806,2633.1,2631.4,6.23878]
[1749029262061,0.55,2632.9,2631.5,8.0]
[1749029262389,5.27595806,2632.8,2631.5,8.0]
[1749029262714,0.55,2632.7,2631.5,8.0]
[1749029262922,0.54307221,2632.7,2631.4,13.964118]
[1749029263205,0.54307221,2632.7,2631.3,1.73288771]
[1749029263409,0.58190303,2632.6,2631.5,0.91183423]
[1749029263575,0.58190303,2632.6,2631.4,8.0]
[1749029263777,0.58190303,2632.6,2631.5,8.0]
[1749029264104,1.148,2632.5,2631.5,10.0]
[1749029264301,1.148,2632.5,2631.5,8.0]
[1749029264508,0.58190303,2632.6,2631.5,9.167]
[1749029264802,0.1968387,2633.6,2631.5,9.167]
[1749029264803,1.2376,2634.2,2632.5,1.167]
[1749029265008,0.19682017,2634.0,2632.5,2.06516756]
[1749029265301,1.2376,2633.8,2632.9,8.0]
[1749029265460,0.55,2633.7,2632.9,8.0]
[1749029265664,1.2376,2633.8,2632.7,8.0]
[1749029265860,0.55,2633.7,2632.7,8.0]
[1749029266063,1.2376,2633.8,2632.9,8.0]
[1749029266300,0.55,2633.7,2632.9,8.0]
[1749029266501,1.2376,2633.8,2632.9,8.0]
[1749029266702,1.2376,2633.8,2632.7,8.0]
[1749029267005,1.2376,2633.8,2632.9,8.51]
[1749029267502,0.55,2633.7,2632.9,8.51]
[1749029267665,0.55,2633.7,2632.9,0.51]
[1749029268071,0.55,2633.7,2632.9,8.51]
[1749029268801,1.2376,2633.8,2632.9,0.51]
[1749029269004,1.2376,2633.8,2633.2,8.0]
[1749029269314,1.2376,2633.8,2633.3,10.0]
[1749029269814,1.2376,2633.8,2633.5,8.0]
[1749029270016,1.2376,2633.8,2633.2,8.742474]
[1749029270187,1.2376,2633.8,2633.2,5.560474]
[1749029270387,1.2376,2633.8,2633.3,4.286157]
[1749029270606,1.2376,2633.8,2633.3,10.066157]
[1749029270805,1.2376,2633.8,2633.1,8.0]
[1749029271106,1.2376,2633.8,2633.3,18.0]
[1749029271302,1.2376,2633.8,2633.5,8.0]
[1749029271807,1.2376,2633.8,2633.5,8.51]
[1749029272491,1.1591,2634.1,2633.5,8.51]
[1749029277195,1.1591,2634.1,2633.8,5.33120702]
[1749029277400,1.1798,2634.4,2633.8,23.33120702]
[1749029277606,0.00237688,2633.9,2633.8,17.03152402]
[1749029278832,0.00237688,2633.9,2633.8,17.92969158]
[1749029281327,0.00237688,2633.9,2633.8,15.86870802]
[1749029281729,0.00237688,2633.9,2633.8,16.37870802]
[1749029282337,0.00237688,2633.9,2633.8,17.57870802]
[1749029287259,0.00237688,2633.9,2633.8,17.51319697]
[1749029287815,0.00237688,2633.9,2633.8,17.00319697]
[1749029288242,0.00027615,2633.9,2633.8,17.00319697]
[1749029288437,0.00027615,2633.9,2633.8,9.00319697]
[1749029290442,0.00027615,2633.9,2633.8,17.00319697]
[1749029292585,1.1837,2634.8,2634.7,5.26569597]
[1749029294886,1.1837,2634.8,2634.7,0.281]
[1749029319397,0.02,2634.9,2634.7,0.268]
[1749029320293,0.02,2634.9,2634.8,0.268]
[1749029332199,0.02,2634.9,2634.6,2.78397329]
[1749029332394,0.02,2634.9,2634.7,0.268]
[1749029332838,0.02,2634.9,2634.8,0.268]
[1749029339055,0.02,2634.9,2634.8,0.256]
[1749029341215,0.02,2634.9,2634.6,2.78397329]
[1749029341421,0.02,2634.9,2634.7,0.256]
[1749029344949,0.02,2634.9,2634.8,0.256]
[1749029350579,0.02,2634.9,2634.8,3.03997329]
[1749029359097,0.02,2634.9,2634.8,0.256]
[1749029362026,1.048,2634.9,2634.6,2.78397329]
[1749029364190,1.048,2634.9,2634.3,0.51]
[1749029364191,1.8595,2634.8,2634.3,0.51]
[1749029364396,1.576,2634.4,2634.3,0.51]
[1749029364596,2.8855,2634.4,2633.9,2.78397329]
[1749029364890,1.027,2634.0,2633.9,10.78397329]
[1749029365444,1.027,2634.0,2633.9,2.78397329]
[1749029365933,1.027,2634.0,2633.9,10.78397329]
[1749029366432,1.026,2634.0,2633.9,10.78397329]
[1749029368921,1.2172,2634.6,2634.1,6.139759]
[1749029369124,1.025,2634.2,2634.1,12.684133]
[1749029370134,1.025,2634.2,2634.1,10.80894]
[1749029370341,1.025,2634.2,2634.1,13.59291329]
[1749029371343,1.025,2634.2,2634.1,10.78397329]
[1749029371905,1.025,2634.2,2634.1,2.78397329]
[1749029378841,1.025,2634.2,2634.0,8.0]
[1749029379355,1.025,2634.2,2634.1,2.78397329]
[1749029379521,1.019,2634.2,2634.1,2.78397329]
[1749029382414,1.019,2634.2,2634.0,2.78397329]
[1749029382646,1.017,2634.1,2634.0,10.78397329]
[1749029382847,1.017,2634.1,2634.0,2.78397329]
[1749029385858,0.55,2634.5,2634.0,2.78397329]
[1749029386162,1.015,2634.1,2634.0,2.78397329]
[1749029387660,1.015,2634.1,2633.8,0.51]
[1749029387860,1.014,2633.9,2633.5,0.69074372]
[1749029388049,1.3049,2634.2,2633.5,0.69074372]
[1749029388050,1.014,2633.6,2633.5,8.69074372]
[1749029388449,1.014,2633.6,2633.5,0.69074372]
[1749029388764,1.014,2633.6,2633.5,8.69074372]
[1749029391965,1.996,2633.6,2633.5,8.69074372]
[1749029393167,1.996,2633.6,2633.5,0.69074372]
[1749029393370,1.996,2633.6,2633.5,3.47471701]
[1749029396682,1.996,2633.6,2633.5,11.47471701]
[1749029397174,1.992,2633.6,2633.5,11.47471701]
[1749029401459,2.226,2633.6,2633.5,11.47471701]
[1749029406397,1.216,2633.6,2633.5,11.47471701]